bitfinex-derivatives/quotes_BNBF0:USTF0_20260114
["timestamp","ask_amount","ask_price","bid_price","bid_amount"]
[1768390465088,0.76939769,932.22,930.78,0.18664722]
[1768390465288,0.76939769,932.21,930.78,0.18664722]
[1768390465486,0.76939769,932.2,930.78,0.18664722]
[1768390465685,0.76939769,932.19,930.78,0.18664722]
[1768390465888,0.76939769,932.18,930.78,0.18664722]
[1768390466084,0.76939769,932.17,930.78,0.18664722]
[1768390466286,0.76939769,932.16,930.78,0.18664722]
[1768390466490,0.76939769,932.15,930.78,0.18664722]
[1768390466690,0.76939769,932.14,930.78,0.18664722]
[1768390466891,0.76939769,932.13,930.78,0.18664722]
[1768390467190,0.76939769,932.12,930.78,0.18664722]
[1768390467390,0.76939769,932.11,930.78,0.18664722]
[1768390467589,0.76939769,932.1,930.78,0.18664722]
[1768390467790,0.76939769,932.09,930.78,0.18664722]
[1768390467991,0.76939769,932.08,929.52,2.6562837]
[1768390468192,0.76939769,932.07,930.68,0.18682909]
[1768390468392,0.76939769,932.06,929.49,2.6562837]
[1768390468587,0.76939769,932.05,929.49,2.6562837]
[1768390468789,0.76939769,932.04,930.67,0.18683561]
[1768390468988,0.76939769,932.03,929.49,2.6562837]
[1768390469191,0.76939769,932.02,930.12,0.18683811]
[1768390469387,0.76939769,932.01,930.12,0.18683811]
[1768390469689,0.76939769,932.0,930.12,0.18683811]
[1768390469993,0.76939769,931.99,930.12,0.18683811]
[1768390470187,0.76939769,931.98,930.12,0.18683811]
[1768390470489,0.76939769,931.97,930.12,0.18683811]
[1768390470692,0.76939769,931.96,930.12,0.18683811]
[1768390470987,0.76939769,931.95,930.12,0.18683811]
[1768390471188,0.76939769,931.94,930.12,0.18683811]
[1768390471393,0.76939769,931.93,930.12,0.18683811]
[1768390471594,0.76939769,931.92,930.12,0.18683811]
[1768390471790,0.76939769,931.91,930.12,0.18683811]
[1768390471991,0.76939769,931.9,930.12,0.18683811]
[1768390472287,0.76939769,931.89,930.12,0.18683811]
[1768390472492,0.76939769,931.88,930.12,0.18683811]
[1768390472793,0.76939769,931.87,930.12,0.18683811]
[1768390472989,0.76939769,931.86,930.12,0.18683811]
[1768390473193,0.76939769,931.85,930.12,0.18683811]
[1768390473393,0.76939769,931.84,930.12,0.18683811]
[1768390473591,0.76939769,931.83,930.12,0.18683811]
[1768390473794,0.76939769,931.82,930.12,0.18683811]
[1768390473994,0.76939769,931.81,930.12,0.18683811]
[1768390474190,0.76939769,931.8,930.12,0.18683811]
[1768390474393,0.76939769,931.79,930.12,0.18683811]
[1768390474592,0.76939769,931.78,930.12,0.18683811]
[1768390474794,0.76939769,931.77,930.12,0.18683811]
[1768390474993,0.76939769,931.76,930.12,0.18683811]
[1768390475193,0.76939769,931.75,930.12,0.18683811]
[1768390475495,0.76939769,931.74,930.12,0.18683811]
[1768390475695,0.76939769,931.73,930.12,0.18683811]
[1768390475891,0.76939769,931.72,930.12,0.18683811]
[1768390476091,0.76939769,931.71,930.12,0.18683811]
[1768390476395,0.76939769,931.7,930.12,0.18683811]
[1768390476594,0.76939769,931.69,930.12,0.18683811]
[1768390476795,0.76939769,931.68,930.12,0.18683811]
[1768390477091,0.76939769,931.67,930.12,0.18683811]
[1768390477295,0.76939769,931.66,930.12,0.18683811]
[1768390477495,0.76939769,931.65,930.12,0.18683811]
[1768390477691,0.76939769,931.64,930.12,0.18683811]
[1768390477893,0.76939769,931.63,930.12,0.18683811]
[1768390478093,0.76939769,931.62,930.12,0.18683811]
[1768390478399,0.76939769,931.61,930.12,0.18683811]
[1768390478697,0.76939769,931.6,930.12,0.18683811]
[1768390478895,0.76939769,931.59,930.12,0.18683811]
[1768390479100,0.76939769,931.58,930.12,0.18683811]
[1768390479397,0.76939769,931.57,930.12,0.18683811]
[1768390479594,0.76939769,931.56,930.12,0.18683811]
[1768390479799,0.76939769,931.55,930.12,0.18683811]
[1768390479999,0.76939769,931.54,930.12,0.18683811]
[1768390480195,0.76939769,931.53,930.12,0.18683811]
[1768390480395,0.76939769,931.52,930.12,0.18683811]
[1768390480699,0.76939769,931.51,930.12,0.18683811]
[1768390480896,0.76939769,931.5,930.12,0.18683811]
[1768390481096,0.76939769,931.49,930.12,0.18683811]
[1768390481299,0.76939769,931.48,930.12,0.18683811]
[1768390481499,0.76939769,931.47,930.12,0.18683811]
[1768390481798,0.76939769,931.46,930.12,0.18683811]
[1768390481996,0.76939769,931.45,930.12,0.18683811]
[1768390482200,0.76939769,931.44,930.12,0.18683811]
[1768390482501,0.76939769,931.43,930.12,0.18683811]
[1768390482796,0.76939769,931.42,930.12,0.18683811]
[1768390483099,0.76939769,931.41,930.12,0.18683811]
[1768390483301,0.76939769,931.4,930.12,0.18683811]
[1768390483497,0.76939769,931.39,930.12,0.18683811]
[1768390483700,0.76939769,931.38,930.12,0.18683811]
[1768390483900,0.76939769,931.37,930.12,0.18683811]
[1768390484099,0.76939769,931.36,930.12,0.18683811]
[1768390484300,0.76939769,931.35,930.12,0.18683811]
[1768390484598,1.028,932.3,930.12,0.18683811]
[1768390484599,0.76939769,931.34,930.12,0.18683811]
[1768390484804,0.76939769,931.33,930.12,0.18683811]
[1768390484998,0.76939769,931.32,930.12,0.18683811]
[1768390485302,0.76939769,931.31,930.12,0.18683811]
[1768390485503,0.76939769,931.3,930.12,0.18683811]
[1768390485701,0.77277958,931.29,930.12,0.18683811]
[1768390485901,0.77277958,931.28,930.12,0.18683811]
[1768390486101,0.77277958,931.27,930.12,0.18683811]
[1768390486306,0.77277958,931.26,930.12,0.18683811]
[1768390486505,0.77277958,931.25,930.12,0.18683811]
[1768390486700,0.77277958,931.24,930.12,0.18683811]
[1768390486904,1.028,932.3,930.12,0.18683811]
[1768390487104,0.77255888,932.29,930.12,0.18683811]
[1768390487306,0.77255888,932.28,930.12,0.18683811]
[1768390487505,1.028,932.3,930.12,0.18683811]
[1768390488304,0.77233033,932.29,930.12,0.18683811]
[1768390488505,0.77233033,932.28,930.12,0.18683811]
[1768390488701,1.028,932.3,930.12,0.18683811]
[1768390489005,0.77233033,932.29,930.12,0.18683811]
[1768390489201,0.77233033,932.28,930.12,0.18683811]
[1768390489401,0.77233033,932.27,930.12,0.18683811]
[1768390489603,0.77233033,932.26,930.12,0.18683811]
[1768390489802,0.77233033,932.25,930.12,0.18683811]
[1768390490006,0.77233033,932.24,930.12,0.18683811]
[1768390490203,0.77233033,932.23,930.12,0.18683811]
[1768390490407,0.77233033,932.22,930.12,0.18683811]
[1768390490607,0.77233033,932.21,930.12,0.18683811]
[1768390490904,0.77233033,932.2,930.12,0.18683811]
[1768390491106,0.77233033,932.19,930.12,0.18683811]
[1768390491405,0.77233033,932.18,930.12,0.18683811]
[1768390491708,0.77233033,932.17,930.12,0.18683811]
[1768390491904,0.77233033,932.16,930.12,0.18683811]
[1768390492108,0.77233033,932.15,930.12,0.18683811]
[1768390492305,0.77233033,932.14,930.12,0.18683811]
[1768390492509,0.77233033,932.13,930.12,0.18683811]
[1768390492807,1.028,932.3,930.12,0.18683811]
[1768390492808,0.77233033,932.12,930.12,0.18683811]
[1768390493009,0.77233033,932.11,930.12,0.18683811]
[1768390493209,0.77233033,932.1,930.12,0.18683811]
[1768390493409,0.77233033,932.09,930.12,0.18683811]
[1768390493710,0.77233033,932.08,930.12,0.18683811]
[1768390493908,0.77233033,932.07,930.12,0.18683811]
[1768390494109,0.77233033,932.06,930.12,0.18683811]
[1768390494310,0.77233033,932.05,930.12,0.18683811]
[1768390494612,0.77233033,932.04,930.12,0.18683811]
[1768390494807,0.77233033,932.03,930.12,0.18683811]
[1768390495110,0.77233033,932.02,930.12,0.18683811]
[1768390495309,0.77233033,932.01,930.12,0.18683811]
[1768390495507,0.77233033,932.0,930.12,0.18683811]
[1768390495709,0.77233033,931.99,930.12,0.18683811]
[1768390495909,0.77233033,931.98,930.12,0.18683811]
[1768390496107,0.77233033,931.97,930.12,0.18683811]
[1768390496306,0.77233033,931.96,930.12,0.18683811]
[1768390496508,0.77233033,931.95,930.12,0.18683811]
[1768390496706,0.77233033,931.94,930.12,0.18683811]
[1768390496908,0.77233033,931.93,930.12,0.18683811]
[1768390497208,0.77233033,931.92,930.12,0.18683811]
[1768390497411,0.77233033,931.91,930.12,0.18683811]
[1768390497609,0.77233033,931.9,930.12,0.18683811]
[1768390497911,0.77233033,931.89,930.12,0.18683811]
[1768390498108,0.77233033,931.88,930.12,0.18683811]
[1768390498310,0.77233033,931.87,930.12,0.18683811]
[1768390498510,0.77233033,931.86,930.12,0.18683811]
[1768390498713,0.77233033,931.85,930.12,0.18683811]
[1768390498911,0.77233033,931.84,930.12,0.18683811]
[1768390499115,0.77233033,931.83,930.12,0.18683811]
[1768390499311,1.028,932.3,930.12,0.18683811]
[1768390499312,0.77233033,931.82,930.12,0.18683811]
[1768390499611,0.77233033,931.81,930.12,0.18683811]
[1768390499916,0.77233033,931.8,930.12,0.18683811]
[1768390500116,0.77233033,931.79,930.12,0.18683811]
[1768390500312,0.77233033,931.78,930.12,0.18683811]
[1768390500516,0.77233033,931.77,930.12,0.18683811]
[1768390500716,0.77233033,931.76,930.12,0.18683811]
[1768390501016,0.77233033,931.75,930.12,0.18683811]
[1768390501215,0.77233033,931.74,930.12,0.18683811]
[1768390501417,0.77233033,931.73,930.12,0.18683811]
[1768390501713,0.77233033,931.72,930.12,0.18683811]
[1768390501916,0.77233033,931.71,930.12,0.18683811]
[1768390502117,0.77233033,931.7,930.12,0.18683811]
[1768390502316,0.77233033,931.69,930.12,0.18683811]
[1768390502616,0.77233033,931.68,930.12,0.18683811]
[1768390502812,0.77233033,931.67,930.12,0.18683811]
[1768390503115,0.77233033,931.66,930.12,0.18683811]
[1768390503316,0.77233033,931.65,930.12,0.18683811]
[1768390503516,0.77233033,931.64,930.12,0.18683811]
[1768390503717,0.77233033,931.63,930.12,0.18683811]
[1768390503917,0.77233033,931.62,930.12,0.18683811]
[1768390504217,0.77233033,931.61,930.12,0.18683811]
[1768390504415,0.77233033,931.6,930.12,0.18683811]
[1768390504717,0.77233033,931.59,930.12,0.18683811]
[1768390504916,0.77233033,931.58,930.12,0.18683811]
[1768390505119,0.77233033,931.57,930.12,0.18683811]
[1768390505318,0.77233033,931.56,930.12,0.18683811]
[1768390505515,0.77233033,931.55,930.12,0.18683811]
[1768390505715,0.77233033,931.54,930.12,0.18683811]
[1768390505918,0.77233033,931.53,930.12,0.18683811]
[1768390506215,0.77233033,931.52,930.12,0.18683811]
[1768390506418,0.77233033,931.51,930.12,0.18683811]
[1768390506612,0.77233033,931.5,930.12,0.18683811]
[1768390506814,0.77233033,931.49,930.12,0.18683811]
[1768390507015,0.77233033,931.48,930.12,0.18683811]
[1768390507214,0.77233033,931.47,930.12,0.18683811]
[1768390507415,0.77233033,931.46,930.12,0.18683811]
[1768390507617,0.77233033,931.45,930.12,0.18683811]
[1768390507823,1.485,931.46,930.12,0.18683811]
[1768390508021,0.77301948,931.45,930.12,0.18683811]
[1768390508221,1.485,931.46,930.12,0.18683811]
[1768390508417,0.77309444,931.45,930.12,0.18683811]
[1768390508618,1.485,931.46,930.12,0.18683811]
[1768390508820,0.77309435,931.45,930.12,0.18683811]
[1768390509022,1.485,931.46,930.12,0.18683811]
[1768390509220,0.77315305,931.45,930.12,0.18683811]
[1768390509423,0.77315305,931.44,930.12,0.18683811]
[1768390509619,1.485,931.46,930.12,0.18683811]
[1768390509824,0.77317087,931.45,930.12,0.18683811]
[1768390510025,0.77317087,931.44,930.12,0.18683811]
[1768390510225,1.485,931.46,930.12,0.18683811]
[1768390510521,0.77323634,931.45,930.12,0.18683811]
[1768390510721,0.77323634,931.44,930.12,0.18683811]
[1768390510921,1.485,931.46,930.12,0.18683811]
[1768390511222,0.77325108,931.45,930.12,0.18683811]
[1768390511423,0.77325108,931.44,930.12,0.18683811]
[1768390511619,1.485,931.46,930.12,0.18683811]
[1768390511820,0.77333449,931.45,930.12,0.18683811]
[1768390512022,0.77333449,931.44,930.12,0.18683811]
[1768390512226,0.77333449,931.43,930.12,0.18683811]
[1768390512426,1.485,931.46,930.12,0.18683811]
[1768390512623,0.7734246,931.45,930.12,0.18683811]
[1768390512926,1.485,931.46,930.12,0.18683811]
[1768390513125,0.77342466,931.45,930.12,0.18683811]
[1768390513323,1.485,931.46,930.12,0.18683811]
[1768390513525,0.77344393,931.45,930.12,0.18683811]
[1768390513826,1.485,931.46,930.12,0.18683811]
[1768390514020,0.77344397,931.45,930.12,0.18683811]
[1768390514223,1.485,931.46,930.12,0.18683811]
[1768390514426,0.77344121,931.45,930.12,0.18683811]
[1768390514625,1.485,931.46,930.12,0.18683811]
[1768390514926,0.77339087,931.45,930.12,0.18683811]
[1768390515123,1.485,931.46,930.12,0.18683811]
[1768390515329,0.77338443,931.45,930.12,0.18683811]
[1768390515526,1.485,931.46,930.12,0.18683811]
[1768390515726,0.77338343,931.45,930.12,0.18683811]
[1768390515928,1.485,931.46,930.12,0.18683811]
[1768390516127,0.77338344,931.45,930.12,0.18683811]
[1768390516325,1.485,931.46,930.12,0.18683811]
[1768390516525,0.77337151,931.45,930.12,0.18683811]
[1768390516726,1.485,931.46,930.12,0.18683811]
[1768390517028,0.77337189,931.45,930.12,0.18683811]
[1768390517228,1.485,931.46,930.12,0.18683811]
[1768390517429,0.7733599,931.45,930.12,0.18683811]
[1768390517728,1.485,931.46,930.12,0.18683811]
[1768390517927,0.77336017,931.45,930.12,0.18683811]
[1768390518125,1.485,931.46,930.12,0.18683811]
[1768390518326,0.77334763,931.45,930.12,0.18683811]
[1768390518531,1.485,931.46,930.12,0.18683811]
[1768390518732,0.77334861,931.45,930.12,0.18683811]
[1768390519027,1.485,931.46,930.12,0.18683811]
[1768390525631,0.01326425,932.39,930.12,0.18683811]
[1768390525930,0.77321045,932.38,930.12,0.18683811]
[1768390526129,0.77321045,932.37,930.12,0.18683811]
[1768390526329,0.77321045,932.36,930.12,0.18683811]
[1768390526629,0.77321045,932.35,930.12,0.18683811]
[1768390526928,0.77321045,932.34,930.12,0.18683811]
[1768390527228,0.77321045,932.33,930.12,0.18683811]
[1768390527432,0.77321045,932.32,930.12,0.18683811]
[1768390527629,0.77321045,932.31,930.12,0.18683811]
[1768390527829,0.77321045,932.3,930.12,0.18683811]
[1768390528035,0.77321045,932.29,930.12,0.18683811]
[1768390528232,2.6439951,933.05,930.12,0.18683811]
[1768390528233,0.77321045,932.28,930.12,0.18683811]
[1768390528433,0.77321045,932.27,930.12,0.18683811]
[1768390528628,0.77321045,932.26,930.12,0.18683811]
[1768390528831,0.77321045,932.25,930.12,0.18683811]
[1768390529028,0.77321045,932.24,930.12,0.18683811]
[1768390529233,2.6439951,933.05,930.12,0.18683811]
[1768390529234,0.77321045,932.23,930.12,0.18683811]
[1768390529432,0.77321045,932.22,930.12,0.18683811]
[1768390529632,0.77321045,932.21,930.12,0.18683811]
[1768390529831,0.77321045,932.2,930.12,0.18683811]
[1768390530031,0.77321045,932.19,930.12,0.18683811]
[1768390530235,0.77321045,932.18,930.12,0.18683811]
[1768390530531,0.77321045,932.17,930.12,0.18683811]
[1768390530834,0.77321045,932.16,930.12,0.18683811]
[1768390531130,1.261,932.22,930.12,0.18683811]
[1768390531131,0.77321045,932.15,930.12,0.18683811]
[1768390531430,0.77321045,932.14,930.12,0.18683811]
[1768390531634,0.77321045,932.13,930.12,0.18683811]
[1768390531832,0.77321045,932.12,930.12,0.18683811]
[1768390532035,1.261,932.22,930.12,0.18683811]
[1768390532036,0.77321045,932.11,930.12,0.18683811]
[1768390532335,0.77321045,932.1,930.12,0.18683811]
[1768390532535,0.77321045,932.09,930.12,0.18683811]
[1768390532735,0.77321045,932.08,930.12,0.18683811]
[1768390532934,0.77321045,932.07,930.12,0.18683811]
[1768390533136,0.77321045,932.06,930.12,0.18683811]
[1768390533436,0.77321045,932.05,930.12,0.18683811]
[1768390533634,0.77321045,932.04,930.12,0.18683811]
[1768390533931,0.77321045,932.03,930.12,0.18683811]
[1768390534132,0.77321045,932.02,930.12,0.18683811]
[1768390534333,0.77321045,932.01,930.12,0.18683811]
[1768390534637,0.77321045,932.0,930.12,0.18683811]
[1768390534935,0.77321045,931.99,930.12,0.18683811]
[1768390535134,0.77321045,931.98,930.12,0.18683811]
[1768390535434,0.77321045,931.97,930.12,0.18683811]
[1768390535637,0.77321045,931.96,930.12,0.18683811]
[1768390535837,0.77321045,931.95,930.12,0.18683811]
[1768390536134,0.77321045,931.94,930.12,0.18683811]
[1768390536434,0.77321045,931.93,930.12,0.18683811]
[1768390536636,1.261,932.22,930.12,0.18683811]
[1768390536637,0.77321045,931.92,930.12,0.18683811]
[1768390536836,0.77321045,931.91,930.12,0.18683811]
[1768390537037,0.77321045,931.9,930.12,0.18683811]
[1768390537333,0.77321045,931.89,930.12,0.18683811]
[1768390537533,0.77321045,931.88,930.12,0.18683811]
[1768390537832,0.77321045,931.87,930.12,0.18683811]
[1768390538032,0.77321045,931.86,930.12,0.18683811]
[1768390538237,0.77321045,931.85,930.12,0.18683811]
[1768390538437,0.77321045,931.84,930.12,0.18683811]
[1768390538639,0.77321045,931.83,930.12,0.18683811]
[1768390538837,0.77321045,931.82,930.12,0.18683811]
[1768390539037,0.77321045,931.81,930.12,0.18683811]
[1768390539233,0.77321045,931.8,930.12,0.18683811]
[1768390539434,0.77321045,931.79,930.12,0.18683811]
[1768390539634,0.77321045,931.78,930.12,0.18683811]
[1768390539837,0.77321045,931.77,930.12,0.18683811]
[1768390540033,0.77321045,931.76,930.12,0.18683811]
[1768390540337,0.77321045,931.75,930.12,0.18683811]
[1768390540534,0.77321045,931.74,930.12,0.18683811]
[1768390540734,0.77321045,931.73,930.12,0.18683811]
[1768390540939,0.77321045,931.72,930.12,0.18683811]
[1768390541137,0.77321045,931.71,930.12,0.18683811]
[1768390541338,0.77321045,931.7,930.12,0.18683811]
[1768390541635,0.77321045,931.69,930.12,0.18683811]
[1768390541935,0.77321045,931.68,930.12,0.18683811]
[1768390542135,0.77321045,931.67,930.12,0.18683811]
[1768390542338,0.77321045,931.66,930.12,0.18683811]
[1768390542540,0.77321045,931.65,930.12,0.18683811]
[1768390542738,0.77321045,931.64,930.12,0.18683811]
[1768390542935,0.77321045,931.63,930.12,0.18683811]
[1768390543140,0.77321045,931.62,930.14,2.6562837]
[1768390543338,0.77321045,931.61,930.14,2.6562837]
[1768390543540,0.77321045,931.6,930.14,2.6562837]
[1768390543736,0.77321045,931.59,930.14,2.6562837]
[1768390543941,0.77321045,931.58,930.14,2.6562837]
[1768390544140,0.77321045,931.57,930.14,2.6562837]
[1768390544341,0.77321045,931.56,930.15,2.6562837]
[1768390544543,0.01207592,932.52,930.15,2.6562837]
[1768390544544,0.77321045,931.55,930.15,2.6562837]
[1768390544743,0.77321045,931.54,930.15,2.6562837]
[1768390545043,0.77321045,931.53,930.15,2.6562837]
[1768390545239,0.77321045,931.52,930.14,2.6562837]
[1768390545443,0.77321045,931.51,930.14,2.6562837]
[1768390545640,0.77321045,931.5,930.14,2.6562837]
[1768390545838,1.159,931.51,930.14,2.6562837]
[1768390546044,0.77398943,931.5,930.14,2.6562837]
[1768390546340,1.159,931.51,930.14,2.6562837]
[1768390547344,1.159,931.51,930.15,2.6562837]
[1768390548339,1.159,931.51,930.14,2.6562837]
[1768390552452,1.159,931.51,930.13,2.6562837]
[1768390557864,1.159,931.51,930.18,2.6562837]
[1768390558360,1.159,931.51,930.17,2.6562837]
[1768390560264,1.159,931.51,930.16,2.6562837]
[1768390560664,0.77311828,931.5,930.16,2.6562837]
[1768390560961,0.77311828,931.49,930.12,0.18683811]
[1768390561261,0.77311828,931.48,930.12,0.18683811]
[1768390561460,0.77311828,931.47,930.12,0.18683811]
[1768390561660,0.77311828,931.46,930.12,0.18683811]
[1768390561863,1.159,931.51,930.12,0.18683811]
[1768390562159,0.77314508,931.5,930.12,0.18683811]
[1768390562359,0.77314508,931.49,930.12,0.18683811]
[1768390562559,0.77314508,931.48,930.12,0.18683811]
[1768390562764,0.77314508,931.47,930.12,0.18683811]
[1768390562964,0.77314508,931.46,930.12,0.18683811]
[1768390563160,0.77314508,931.45,930.12,0.18683811]
[1768390563358,0.77314508,931.44,930.12,0.18683811]
[1768390563560,0.77314508,931.43,930.12,0.18683811]
[1768390563761,0.77314508,931.42,930.12,0.18683811]
[1768390563962,0.77314508,931.41,930.12,0.18683811]
[1768390564162,0.77314508,931.4,930.12,0.18683811]
[1768390564363,0.77314508,931.39,930.12,0.18683811]
[1768390564563,0.77314508,931.38,930.12,0.18683811]
[1768390564764,0.77314508,931.37,930.12,0.18683811]
[1768390564964,0.77314508,931.36,930.12,0.18683811]
[1768390565166,1.159,931.51,930.12,0.18683811]
[1768390565363,0.77148476,931.5,930.12,0.18683811]
[1768390565563,0.77148476,931.49,930.12,0.18683811]
[1768390565763,0.77148476,931.48,930.12,0.18683811]
[1768390565964,0.77148476,931.47,930.12,0.18683811]
[1768390566162,0.77148476,931.46,930.12,0.18683811]
[1768390566364,0.77148476,931.45,930.12,0.18683811]
[1768390566567,0.77148476,931.44,930.12,0.18683811]
[1768390566767,1.159,931.51,930.12,0.18683811]
[1768390566768,0.77148476,931.43,930.12,0.18683811]
[1768390566968,0.77148476,931.42,930.12,0.18683811]
[1768390567168,0.77148476,931.41,930.12,0.18683811]
[1768390567468,0.77148476,931.4,930.12,0.18683811]
[1768390567668,0.77148476,931.39,930.12,0.18683811]
[1768390567864,0.77148476,931.38,930.12,0.18683811]
[1768390568068,0.77148476,931.37,930.12,0.18683811]
[1768390568265,0.77148476,931.36,930.12,0.18683811]
[1768390568468,0.77148476,931.35,930.12,0.18683811]
[1768390568669,0.77148476,931.34,930.12,0.18683811]
[1768390568867,0.77148476,931.33,930.12,0.18683811]
[1768390569071,0.77148476,931.32,930.12,0.18683811]
[1768390569265,0.77148476,931.31,930.12,0.18683811]
[1768390569565,0.77148476,931.3,930.12,0.18683811]
[1768390569768,0.77148476,931.29,930.12,0.18683811]
[1768390569970,0.77148476,931.28,930.12,0.18683811]
[1768390570171,0.77148476,931.27,930.12,0.18683811]
[1768390570371,0.77148476,931.26,930.12,0.18683811]
[1768390570672,0.77148476,931.25,930.12,0.18683811]
[1768390570971,0.77148476,931.24,930.12,0.18683811]
[1768390571168,0.77148476,931.23,930.12,0.18683811]
[1768390571472,0.77148476,931.22,930.12,0.18683811]
[1768390571772,0.77148476,931.21,930.12,0.18683811]
[1768390571966,0.77148476,931.2,930.12,0.18683811]
[1768390572267,0.77148476,931.19,930.12,0.18683811]
[1768390572474,0.77148476,931.18,930.12,0.18683811]
[1768390572672,0.77148476,931.17,930.12,0.18683811]
[1768390572869,0.77148476,931.16,930.12,0.18683811]
[1768390573172,0.77148476,931.15,930.12,0.18683811]
[1768390573372,1.547,931.23,930.12,0.18683811]
[1768390573567,0.76897497,931.22,930.12,0.18683811]
[1768390573772,0.76897497,931.21,930.12,0.18683811]
[1768390574073,0.76897497,931.2,930.12,0.18683811]
[1768390574373,0.76897497,931.19,930.12,0.18683811]
[1768390574568,0.76897497,931.18,930.12,0.18683811]
[1768390574873,0.76897497,931.17,930.12,0.18683811]
[1768390575168,1.547,931.23,930.12,0.18683811]
[1768390575369,0.76875535,931.22,930.12,0.18683811]
[1768390575574,0.76875535,931.21,930.12,0.18683811]
[1768390575769,0.76875535,931.2,930.12,0.18683811]
[1768390575970,0.76875535,931.19,930.12,0.18683811]
[1768390576173,0.76875535,931.18,930.12,0.18683811]
[1768390576474,1.547,931.23,930.12,0.18683811]
[1768390576674,0.76837252,931.22,930.12,0.18683811]
[1768390576974,0.76837252,931.21,930.12,0.18683811]
[1768390577170,1.547,931.23,930.12,0.18683811]
[1768390594482,0.00779416,932.17,930.12,0.18683811]
[1768390594686,0.76628347,932.16,930.12,0.18683811]
[1768390594882,0.76628347,932.15,930.12,0.18683811]
[1768390595184,0.76628347,932.14,930.12,0.18683811]
[1768390595384,0.76628347,932.13,930.12,0.18683811]
[1768390595586,0.76628347,932.12,930.12,0.18683811]
[1768390595885,0.76628347,932.11,930.12,0.18683811]
[1768390596181,0.76628347,932.1,930.12,0.18683811]
[1768390596486,0.76628347,932.09,930.12,0.18683811]
[1768390596685,0.76628347,932.08,930.12,0.18683811]
[1768390596883,0.76628347,932.07,930.12,0.18683811]
[1768390597087,0.76628347,932.06,930.12,0.18683811]
[1768390597286,0.76628347,932.05,930.12,0.18683811]
[1768390597482,0.76628347,932.04,930.12,0.18683811]
[1768390597689,0.76628347,932.03,930.12,0.18683811]
[1768390597888,0.18685266,931.85,930.12,0.18683811]
[1768390598086,0.76628347,931.84,930.12,0.18683811]
[1768390598388,0.76628347,931.83,930.12,0.18683811]
[1768390598685,0.76628347,931.82,930.12,0.18683811]
[1768390598888,0.76628347,931.81,930.12,0.18683811]
[1768390599086,0.76628347,931.8,930.12,0.18683811]
[1768390599287,0.76628347,931.79,930.12,0.18683811]
[1768390599588,0.76628347,931.78,930.12,0.18683811]
[1768390599787,0.76628347,931.77,930.12,0.18683811]
[1768390599983,0.76628347,931.76,930.12,0.18683811]
[1768390600188,0.76628347,931.75,930.12,0.18683811]
[1768390600386,0.76628347,931.74,930.12,0.18683811]
[1768390600588,0.76628347,931.73,930.12,0.18683811]
[1768390600786,0.76628347,931.72,930.12,0.18683811]
[1768390600985,0.76628347,931.71,930.12,0.18683811]
[1768390601185,0.76628347,931.7,930.12,0.18683811]
[1768390601388,0.76628347,931.69,930.12,0.18683811]
[1768390601589,0.76628347,931.68,930.12,0.18683811]
[1768390601787,0.76628347,931.67,930.12,0.18683811]
[1768390601986,0.76628347,931.66,930.12,0.18683811]
[1768390602192,0.76628347,931.65,930.12,0.18683811]
[1768390602487,0.76628347,931.64,930.12,0.18683811]
[1768390602687,0.76628347,931.63,930.12,0.18683811]
[1768390602890,0.76628347,931.62,930.12,0.18683811]
[1768390603091,0.76628347,931.61,930.12,0.18683811]
[1768390603289,0.76628347,931.6,930.12,0.18683811]
[1768390603592,0.76729668,931.59,930.12,0.18683811]
[1768390603793,0.76729668,931.58,930.12,0.18683811]
[1768390603995,0.76729668,931.57,930.12,0.18683811]
[1768390604192,0.76729668,931.56,930.12,0.18683811]
[1768390604495,0.76729668,931.55,930.12,0.18683811]
[1768390604697,0.76729668,931.54,930.12,0.18683811]
[1768390604891,0.76729668,931.53,930.12,0.18683811]
[1768390605092,0.76729668,931.52,930.12,0.18683811]
[1768390605291,0.76729668,931.51,930.12,0.18683811]
[1768390605496,0.76729668,931.5,930.12,0.18683811]
[1768390605696,0.76729668,931.49,930.12,0.18683811]
[1768390605894,0.76729668,931.48,930.12,0.18683811]
[1768390606092,0.76729668,931.47,930.12,0.18683811]
[1768390606294,0.76760785,931.46,930.12,0.18683811]
[1768390606493,0.76760785,931.45,930.12,0.18683811]
[1768390606696,0.76760785,931.44,930.12,0.18683811]
[1768390606995,0.76760785,931.43,930.12,0.18683811]
[1768390607193,0.76760785,931.42,930.12,0.18683811]
[1768390607397,0.76760785,931.41,930.12,0.18683811]
[1768390607692,0.76760785,931.4,930.12,0.18683811]
[1768390607897,0.76760785,931.39,930.12,0.18683811]
[1768390608095,0.76760785,931.38,930.12,0.18683811]
[1768390608293,0.76760785,931.37,930.12,0.18683811]
[1768390608595,0.76760785,931.36,930.12,0.18683811]
[1768390608796,0.76760785,931.35,930.12,0.18683811]
[1768390609000,0.76760785,931.34,930.12,0.18683811]
[1768390609200,0.18685266,931.85,930.12,0.18683811]
[1768390610000,0.76833376,931.84,930.12,0.18683811]
[1768390610200,0.18685266,931.85,930.12,0.18683811]
[1768390610401,0.76848548,931.84,930.12,0.18683811]
[1768390610697,0.76848548,931.83,930.12,0.18683811]